[Event "Titled Tuesday Blitz August 16 Early 2022"]
[White "Schrik, Rachid"]
[Black "Maksimenko, Viktor"]
[WhiteFideId "1009818"]
[BlackFideId "13710478"]
[WhiteElo "2070"]
[BlackElo "2269"]
[Result "1-0"]
[Round "03"]
[TimeControl "180+2"]
[Date "2022.08.18"]
[WhiteClock "0:00:00"]
[BlackClock "0:00:00"]

1. d4 {[%clk 0:00:00]}  Nf6 {[%clk 0:00:00]} 2. c4 {[%clk 0:00:00]}  e6 {[%clk 0:00:00]} 3. Nc3 {[%clk 0:00:00]}  Bb4 {[%clk 0:00:00]} 4. a3 {[%clk 0:00:00]}  Bxc3+ {[%clk 0:00:00]} 5. bxc3 {[%clk 0:00:00]}  O-O {[%clk 0:00:00]} 6. f3 {[%clk 0:00:00]}  Ne8 {[%clk 0:00:00]} 7. e4 {[%clk 0:00:00]}  Nc6 {[%clk 0:00:00]} 8. Nh3 {[%clk 0:00:00]}  b6 {[%clk 0:00:00]} 9. Bd3 {[%clk 0:00:00]}  Ba6 {[%clk 0:00:00]} 10. e5 {[%clk 0:00:00]}  f5 {[%clk 0:00:00]} 11. f4 {[%clk 0:00:00]}  Na5 {[%clk 0:00:00]} 12. Ng5 {[%clk 0:00:00]}  h6 {[%clk 0:00:00]} 13. Qh5 {[%clk 0:00:00]}  hxg5 {[%clk 0:00:00]} 14. fxg5 {[%clk 0:00:00]}  g6 {[%clk 0:00:00]} 15. Qxg6+ {[%clk 0:00:00]}  Ng7 {[%clk 0:00:00]} 16. Qh6 {[%clk 0:00:00]}  Qe7 {[%clk 0:00:00]} 17. g6 {[%clk 0:00:00]}  Ne8 {[%clk 0:00:00]} 18. O-O {[%clk 0:00:00]}  Bxc4 {[%clk 0:00:00]} 19. Bxc4 {[%clk 0:00:00]}  Nxc4 {[%clk 0:00:00]} 20. Rf3 {[%clk 0:00:00]}  Qg7 {[%clk 0:00:00]} 21. Qh5 {[%clk 0:00:00]}  f4 {[%clk 0:00:00]} 22. Bxf4 {[%clk 0:00:00]}  Rf5 {[%clk 0:00:00]} 23. Qh3 {[%clk 0:00:00]}  c6 {[%clk 0:00:00]} 24. Bh6 {[%clk 0:00:00]}  Rxf3 {[%clk 0:00:00]} 25. Qxf3 {[%clk 0:00:00]}  Qxg6 {[%clk 0:00:00]} 26. Qf8+ {[%clk 0:00:00]}  Kh7 {[%clk 0:00:00]} 27. Bf4 {[%clk 0:00:00]}  Nc7 {[%clk 0:00:00]} 28. Qe7+ {[%clk 0:00:00]}  Qg7 {[%clk 0:00:00]} 29. Qh4+ {[%clk 0:00:00]}  Kg8 {[%clk 0:00:00]} 30. Bh6 {[%clk 0:00:00]}  Qg6 {[%clk 0:00:00]} 31. Rf1 {[%clk 0:00:00]}  Nd5 {[%clk 0:00:00]} 32. Rf3 {[%clk 0:00:00]}  Qb1+ {[%clk 0:00:00]} 33. Rf1 {[%clk 0:00:00]}  Qg6 {[%clk 0:00:00]} 34. Rf3 {[%clk 0:00:00]}  Qb1+ {[%clk 0:00:00]} 35. Rf1 {[%clk 0:00:00]}  Qh7 {[%clk 0:00:00]} 36. Qg5+ {[%clk 0:00:00]}  Kh8 {[%clk 0:00:00]} 37. Rf3 {[%clk 0:00:00]}  Rg8 {[%clk 0:00:00]} 38. Qh5 {[%clk 0:00:00]}  Qg6 {[%clk 0:00:00]} 39. Qh3 {[%clk 0:00:00]}  Qxh6 {[%clk 0:00:00]} 40. Qxh6# {[%clk 0:00:00]} 1-0


[Site "https://www.chess.com"]

[Event "Titled Tuesday Blitz August 16 Early 2022"]
[White "Shukhman, Anna"]
[Black "Melaugh, Shane"]
[WhiteFideId "54180058"]
[BlackFideId "2509580"]
[WhiteElo "1726"]
[BlackElo "1946"]
[Result "0-1"]
[Round "03"]
[TimeControl "180+2"]
[Date "2022.08.18"]
[WhiteClock "0:00:00"]
[BlackClock "0:00:00"]

1. e4 {[%clk 0:00:00]}  d6 {[%clk 0:00:00]} 2. d4 {[%clk 0:00:00]}  Nf6 {[%clk 0:00:00]} 3. Nc3 {[%clk 0:00:00]}  Nbd7 {[%clk 0:00:00]} 4. f4 {[%clk 0:00:00]}  e5 {[%clk 0:00:00]} 5. dxe5 {[%clk 0:00:00]}  dxe5 {[%clk 0:00:00]} 6. f5 {[%clk 0:00:00]}  Bb4 {[%clk 0:00:00]} 7. Bd3 {[%clk 0:00:00]}  Nc5 {[%clk 0:00:00]} 8. Ne2 {[%clk 0:00:00]}  Ncxe4 {[%clk 0:00:00]} 9. Bxe4 {[%clk 0:00:00]}  Nxe4 {[%clk 0:00:00]} 10. Qxd8+ {[%clk 0:00:00]}  Kxd8 {[%clk 0:00:00]} 11. Be3 {[%clk 0:00:00]}  Nxc3 {[%clk 0:00:00]} 12. Nxc3 {[%clk 0:00:00]}  Bxc3+ {[%clk 0:00:00]} 13. bxc3 {[%clk 0:00:00]}  Bxf5 {[%clk 0:00:00]} 14. O-O-O+ {[%clk 0:00:00]}  Kc8 {[%clk 0:00:00]} 15. Rhf1 {[%clk 0:00:00]}  Be6 {[%clk 0:00:00]} 16. Kb2 {[%clk 0:00:00]}  b6 {[%clk 0:00:00]} 17. h3 {[%clk 0:00:00]}  Kb7 {[%clk 0:00:00]} 18. Bg1 {[%clk 0:00:00]}  Rad8 {[%clk 0:00:00]} 19. Bh2 {[%clk 0:00:00]}  f6 {[%clk 0:00:00]} 20. g4 {[%clk 0:00:00]}  h6 {[%clk 0:00:00]} 21. Bg3 {[%clk 0:00:00]}  c5 {[%clk 0:00:00]} 22. a3 {[%clk 0:00:00]}  Kc6 {[%clk 0:00:00]} 23. Rfe1 {[%clk 0:00:00]}  Bd5 {[%clk 0:00:00]} 24. h4 {[%clk 0:00:00]}  Bf3 {[%clk 0:00:00]} 25. Rxd8 {[%clk 0:00:00]}  Rxd8 {[%clk 0:00:00]} 26. g5 {[%clk 0:00:00]}  hxg5 {[%clk 0:00:00]} 27. hxg5 {[%clk 0:00:00]}  e4 {[%clk 0:00:00]} 28. gxf6 {[%clk 0:00:00]}  gxf6 {[%clk 0:00:00]} 29. Bf4 {[%clk 0:00:00]}  Rg8 {[%clk 0:00:00]} 30. c4 {[%clk 0:00:00]}  Rg4 {[%clk 0:00:00]} 31. Be3 {[%clk 0:00:00]}  f5 {[%clk 0:00:00]} 32. Kc3 {[%clk 0:00:00]}  f4 {[%clk 0:00:00]} 33. Bc1 {[%clk 0:00:00]}  Kd6 {[%clk 0:00:00]} 34. Rf1 {[%clk 0:00:00]}  Ke5 {[%clk 0:00:00]} 35. a4 {[%clk 0:00:00]}  Rg3 {[%clk 0:00:00]} 36. Bb2 {[%clk 0:00:00]}  Be2+ {[%clk 0:00:00]} 37. Kd2+ {[%clk 0:00:00]}  Kf5 {[%clk 0:00:00]} 38. Kxe2 {[%clk 0:00:00]}  Rg2+ {[%clk 0:00:00]} 39. Rf2 {[%clk 0:00:00]}  f3+ {[%clk 0:00:00]} 40. Ke3 {[%clk 0:00:00]}  Rg1 {[%clk 0:00:00]} 41. Bc3 {[%clk 0:00:00]}  Rh1 {[%clk 0:00:00]} 42. Rd2 {[%clk 0:00:00]}  Re1+ {[%clk 0:00:00]} 43. Kf2 {[%clk 0:00:00]}  Rc1 {[%clk 0:00:00]} 44. Rd5+ {[%clk 0:00:00]}  Kg4 {[%clk 0:00:00]} 45. Rd2 {[%clk 0:00:00]}  Kf4 {[%clk 0:00:00]} 46. Re2 {[%clk 0:00:00]}  e3+ {[%clk 0:00:00]} 47. Rxe3 {[%clk 0:00:00]}  Rxc2+ {[%clk 0:00:00]} 48. Ke1 {[%clk 0:00:00]}  Kxe3 {[%clk 0:00:00]} 0-1


[Site "https://www.chess.com"]

[Event "Titled Tuesday Blitz August 16 Early 2022"]
[White "Skawinski, Arkadiusz"]
[Black "Gubanov, Oleg"]
[WhiteFideId "1126415"]
[BlackFideId "14115115"]
[WhiteElo "2149"]
[BlackElo "2080"]
[Result "1-0"]
[Round "03"]
[TimeControl "180+2"]
[Date "2022.08.18"]
[WhiteClock "0:00:00"]
[BlackClock "0:00:00"]

1. e4 {[%clk 0:00:00]}  Nf6 {[%clk 0:00:00]} 2. e5 {[%clk 0:00:00]}  Nd5 {[%clk 0:00:00]} 3. Nc3 {[%clk 0:00:00]}  Nxc3 {[%clk 0:00:00]} 4. bxc3 {[%clk 0:00:00]}  d6 {[%clk 0:00:00]} 5. f4 {[%clk 0:00:00]}  Nc6 {[%clk 0:00:00]} 6. Nf3 {[%clk 0:00:00]}  dxe5 {[%clk 0:00:00]} 7. fxe5 {[%clk 0:00:00]}  Qd5 {[%clk 0:00:00]} 8. d4 {[%clk 0:00:00]}  Bg4 {[%clk 0:00:00]} 9. Bd3 {[%clk 0:00:00]}  Bxf3 {[%clk 0:00:00]} 10. Qxf3 {[%clk 0:00:00]}  Qxf3 {[%clk 0:00:00]} 11. gxf3 {[%clk 0:00:00]}  O-O-O {[%clk 0:00:00]} 12. f4 {[%clk 0:00:00]}  e6 {[%clk 0:00:00]} 13. f5 {[%clk 0:00:00]}  g6 {[%clk 0:00:00]} 14. fxe6 {[%clk 0:00:00]}  fxe6 {[%clk 0:00:00]} 15. O-O {[%clk 0:00:00]}  Ne7 {[%clk 0:00:00]} 16. Bg5 {[%clk 0:00:00]}  Rd7 {[%clk 0:00:00]} 17. Rf6 {[%clk 0:00:00]}  Nd5 {[%clk 0:00:00]} 18. Rxe6 {[%clk 0:00:00]}  Nxc3 {[%clk 0:00:00]} 19. Re8+ {[%clk 0:00:00]} 1-0


[Site "https://www.chess.com"]

[Event "Titled Tuesday Blitz August 16 Early 2022"]
[White "Skliarov, Viktor"]
[Black "Sargissyan, Sargis"]
[WhiteFideId "14106736"]
[BlackFideId "13303210"]
[WhiteElo "2257"]
[BlackElo "2102"]
[Result "1-0"]
[Round "03"]
[TimeControl "180+2"]
[Date "2022.08.18"]
[WhiteClock "0:00:00"]
[BlackClock "0:00:00"]

1. e4 {[%clk 0:00:00]}  c5 {[%clk 0:00:00]} 2. Nf3 {[%clk 0:00:00]}  d6 {[%clk 0:00:00]} 3. d4 {[%clk 0:00:00]}  cxd4 {[%clk 0:00:00]} 4. Qxd4 {[%clk 0:00:00]}  Nf6 {[%clk 0:00:00]} 5. Nc3 {[%clk 0:00:00]}  Nc6 {[%clk 0:00:00]} 6. Bb5 {[%clk 0:00:00]}  Bd7 {[%clk 0:00:00]} 7. Bxc6 {[%clk 0:00:00]}  Bxc6 {[%clk 0:00:00]} 8. Bg5 {[%clk 0:00:00]}  e6 {[%clk 0:00:00]} 9. O-O-O {[%clk 0:00:00]}  Be7 {[%clk 0:00:00]} 10. Rhe1 {[%clk 0:00:00]}  Qc7 {[%clk 0:00:00]} 11. Kb1 {[%clk 0:00:00]}  O-O {[%clk 0:00:00]} 12. Qd3 {[%clk 0:00:00]}  b5 {[%clk 0:00:00]} 13. Nd4 {[%clk 0:00:00]}  b4 {[%clk 0:00:00]} 14. Ncb5 {[%clk 0:00:00]}  Bxb5 {[%clk 0:00:00]} 15. Nxb5 {[%clk 0:00:00]}  Qc5 {[%clk 0:00:00]} 16. Be3 {[%clk 0:00:00]}  Qc6 {[%clk 0:00:00]} 17. f3 {[%clk 0:00:00]}  d5 {[%clk 0:00:00]} 18. e5 {[%clk 0:00:00]}  Nd7 {[%clk 0:00:00]} 19. f4 {[%clk 0:00:00]}  Nc5 {[%clk 0:00:00]} 20. Bxc5 {[%clk 0:00:00]}  Bxc5 {[%clk 0:00:00]} 21. g4 {[%clk 0:00:00]}  Rfc8 {[%clk 0:00:00]} 22. Re2 {[%clk 0:00:00]}  a5 {[%clk 0:00:00]} 23. f5 {[%clk 0:00:00]}  a4 {[%clk 0:00:00]} 24. f6 {[%clk 0:00:00]}  Ra5 {[%clk 0:00:00]} 25. Nd4 {[%clk 0:00:00]}  Bxd4 {[%clk 0:00:00]} 26. Qxd4 {[%clk 0:00:00]}  b3 {[%clk 0:00:00]} 27. Rc1 {[%clk 0:00:00]}  bxa2+ {[%clk 0:00:00]} 28. Ka1 {[%clk 0:00:00]}  a3 {[%clk 0:00:00]} 29. b3 {[%clk 0:00:00]}  Qc3+ {[%clk 0:00:00]} 30. Qxc3 {[%clk 0:00:00]}  Rxc3 {[%clk 0:00:00]} 31. Kxa2 {[%clk 0:00:00]}  gxf6 {[%clk 0:00:00]} 32. exf6 {[%clk 0:00:00]}  Rf3 {[%clk 0:00:00]} 33. g5 {[%clk 0:00:00]}  d4 {[%clk 0:00:00]} 34. h4 {[%clk 0:00:00]}  Rf4 {[%clk 0:00:00]} 35. Rh1 {[%clk 0:00:00]}  e5 {[%clk 0:00:00]} 36. b4 {[%clk 0:00:00]}  Rd5 {[%clk 0:00:00]} 37. Kxa3 {[%clk 0:00:00]}  d3 {[%clk 0:00:00]} 38. cxd3 {[%clk 0:00:00]}  Rxd3+ {[%clk 0:00:00]} 39. Ka4 {[%clk 0:00:00]}  Rdd4 {[%clk 0:00:00]} 40. Rb2 {[%clk 0:00:00]}  Rd8 {[%clk 0:00:00]} 41. h5 {[%clk 0:00:00]}  Rg4 {[%clk 0:00:00]} 42. h6 {[%clk 0:00:00]}  Rxg5 {[%clk 0:00:00]} 43. b5 {[%clk 0:00:00]}  e4 {[%clk 0:00:00]} 44. Re1 {[%clk 0:00:00]}  Re5 {[%clk 0:00:00]} 45. Rg2+ {[%clk 0:00:00]}  Kf8 {[%clk 0:00:00]} 46. Rg7 {[%clk 0:00:00]}  e3 {[%clk 0:00:00]} 47. Rxh7 {[%clk 0:00:00]} 1-0


[Site "https://www.chess.com"]

[Event "Titled Tuesday Blitz August 16 Early 2022"]
[White "Sourath Biswas"]
[Black "Liu, Casper"]
[WhiteFideId "35091484"]
[BlackFideId "1454153"]
[WhiteElo "1777"]
[BlackElo "2025"]
[Result "1-0"]
[Round "03"]
[TimeControl "180+2"]
[Date "2022.08.18"]
[WhiteClock "0:00:00"]
[BlackClock "0:00:00"]

1. d4 {[%clk 0:00:00]}  d5 {[%clk 0:00:00]} 2. Bf4 {[%clk 0:00:00]}  h5 {[%clk 0:00:00]} 3. Nf3 {[%clk 0:00:00]}  Nc6 {[%clk 0:00:00]} 4. e3 {[%clk 0:00:00]}  Bf5 {[%clk 0:00:00]} 5. Bb5 {[%clk 0:00:00]}  f6 {[%clk 0:00:00]} 6. Nh4 {[%clk 0:00:00]}  Bg4 {[%clk 0:00:00]} 7. Qd3 {[%clk 0:00:00]}  g5 {[%clk 0:00:00]} 8. Ng6 {[%clk 0:00:00]}  Rh6 {[%clk 0:00:00]} 9. Nxf8 {[%clk 0:00:00]}  Kxf8 {[%clk 0:00:00]} 10. h3 {[%clk 0:00:00]}  gxf4 {[%clk 0:00:00]} 11. hxg4 {[%clk 0:00:00]}  hxg4 {[%clk 0:00:00]} 12. Rxh6 {[%clk 0:00:00]}  Nxh6 {[%clk 0:00:00]} 13. Qg6 {[%clk 0:00:00]}  Nf7 {[%clk 0:00:00]} 14. Qxg4 {[%clk 0:00:00]}  fxe3 {[%clk 0:00:00]} 15. fxe3 {[%clk 0:00:00]}  Qd6 {[%clk 0:00:00]} 16. Nc3 {[%clk 0:00:00]}  Qh2 {[%clk 0:00:00]} 17. O-O-O {[%clk 0:00:00]}  Rd8 {[%clk 0:00:00]} 18. Rf1 {[%clk 0:00:00]}  Qh6 {[%clk 0:00:00]} 19. Nd1 {[%clk 0:00:00]}  Ng5 {[%clk 0:00:00]} 20. Qf4 {[%clk 0:00:00]}  Nf7 {[%clk 0:00:00]} 21. Qxc7 {[%clk 0:00:00]}  Nxd4 {[%clk 0:00:00]} 22. Bd3 {[%clk 0:00:00]}  Rd6 {[%clk 0:00:00]} 23. Qb8+ {[%clk 0:00:00]}  Nd8 {[%clk 0:00:00]} 24. Qxa7 {[%clk 0:00:00]}  N4c6 {[%clk 0:00:00]} 25. Qa4 {[%clk 0:00:00]}  Ne5 {[%clk 0:00:00]} 26. Qf4 {[%clk 0:00:00]}  Qh5 {[%clk 0:00:00]} 27. Nf2 {[%clk 0:00:00]}  Rc6 {[%clk 0:00:00]} 28. g4 {[%clk 0:00:00]} 1-0


[Site "https://www.chess.com"]

[Event "Titled Tuesday Blitz August 16 Early 2022"]
[White "Suder, Jakub"]
[Black "Zenin, Dmitry"]
[WhiteFideId "1195310"]
[BlackFideId "4127897"]
[WhiteElo "2095"]
[BlackElo "2215"]
[Result "1-0"]
[Round "03"]
[TimeControl "180+2"]
[Date "2022.08.18"]
[WhiteClock "0:00:00"]
[BlackClock "0:00:00"]

1. d4 {[%clk 0:00:00]}  Nf6 {[%clk 0:00:00]} 2. c4 {[%clk 0:00:00]}  g6 {[%clk 0:00:00]} 3. Nc3 {[%clk 0:00:00]}  Bg7 {[%clk 0:00:00]} 4. e4 {[%clk 0:00:00]}  d6 {[%clk 0:00:00]} 5. Nf3 {[%clk 0:00:00]}  O-O {[%clk 0:00:00]} 6. Be2 {[%clk 0:00:00]}  Na6 {[%clk 0:00:00]} 7. O-O {[%clk 0:00:00]}  e5 {[%clk 0:00:00]} 8. d5 {[%clk 0:00:00]}  Nc5 {[%clk 0:00:00]} 9. Qc2 {[%clk 0:00:00]}  a5 {[%clk 0:00:00]} 10. Ne1 {[%clk 0:00:00]}  Ne8 {[%clk 0:00:00]} 11. Be3 {[%clk 0:00:00]}  b6 {[%clk 0:00:00]} 12. a3 {[%clk 0:00:00]}  f5 {[%clk 0:00:00]} 13. f3 {[%clk 0:00:00]}  Bd7 {[%clk 0:00:00]} 14. Nd3 {[%clk 0:00:00]}  Nf6 {[%clk 0:00:00]} 15. Nf2 {[%clk 0:00:00]}  a4 {[%clk 0:00:00]} 16. Rad1 {[%clk 0:00:00]}  Nb3 {[%clk 0:00:00]} 17. exf5 {[%clk 0:00:00]}  gxf5 {[%clk 0:00:00]} 18. f4 {[%clk 0:00:00]}  Qe7 {[%clk 0:00:00]} 19. Kh1 {[%clk 0:00:00]}  Rae8 {[%clk 0:00:00]} 20. fxe5 {[%clk 0:00:00]}  dxe5 {[%clk 0:00:00]} 21. Bg5 {[%clk 0:00:00]}  Qf7 {[%clk 0:00:00]} 22. Nb5 {[%clk 0:00:00]}  Bxb5 {[%clk 0:00:00]} 23. cxb5 {[%clk 0:00:00]}  Nd4 {[%clk 0:00:00]} 24. Rxd4 {[%clk 0:00:00]}  exd4 {[%clk 0:00:00]} 25. Bc4 {[%clk 0:00:00]}  Kh8 {[%clk 0:00:00]} 26. Bf4 {[%clk 0:00:00]}  Nxd5 {[%clk 0:00:00]} 27. Nd3 {[%clk 0:00:00]}  Qd7 {[%clk 0:00:00]} 28. Bxd5 {[%clk 0:00:00]}  Qxd5 {[%clk 0:00:00]} 29. Qxc7 {[%clk 0:00:00]}  Qxb5 {[%clk 0:00:00]} 30. Qc2 {[%clk 0:00:00]}  Rc8 {[%clk 0:00:00]} 31. Qd2 {[%clk 0:00:00]}  Rfe8 {[%clk 0:00:00]} 32. h4 {[%clk 0:00:00]}  Re4 {[%clk 0:00:00]} 33. h5 {[%clk 0:00:00]}  Qc6 {[%clk 0:00:00]} 34. h6 {[%clk 0:00:00]}  Bf6 {[%clk 0:00:00]} 35. Nf2 {[%clk 0:00:00]}  Ree8 {[%clk 0:00:00]} 36. Qb4 {[%clk 0:00:00]}  Qc4 {[%clk 0:00:00]} 37. Qxc4 {[%clk 0:00:00]}  Rxc4 {[%clk 0:00:00]} 38. Nd3 {[%clk 0:00:00]}  Rc2 {[%clk 0:00:00]} 39. Bd6 {[%clk 0:00:00]}  Re3 {[%clk 0:00:00]} 40. Rxf5 {[%clk 0:00:00]}  Rxd3 {[%clk 0:00:00]} 41. Rxf6 {[%clk 0:00:00]}  Rc8 {[%clk 0:00:00]} 42. Rf7 {[%clk 0:00:00]}  Re3 {[%clk 0:00:00]} 43. Be7 {[%clk 0:00:00]}  Rxe7 {[%clk 0:00:00]} 44. Rxe7 {[%clk 0:00:00]}  Rd8 {[%clk 0:00:00]} 45. Re2 {[%clk 0:00:00]}  Kg8 {[%clk 0:00:00]} 46. g4 {[%clk 0:00:00]}  Kf7 {[%clk 0:00:00]} 47. Kg2 {[%clk 0:00:00]}  Kg6 {[%clk 0:00:00]} 48. Re6+ {[%clk 0:00:00]}  Kg5 {[%clk 0:00:00]} 49. Kf2 {[%clk 0:00:00]}  d3 {[%clk 0:00:00]} 50. Ke1 {[%clk 0:00:00]}  Kxg4 {[%clk 0:00:00]} 51. Rxb6 {[%clk 0:00:00]}  Rd4 {[%clk 0:00:00]} 52. Kd2 {[%clk 0:00:00]}  Kf3 {[%clk 0:00:00]} 53. Rb7 {[%clk 0:00:00]}  Rh4 {[%clk 0:00:00]} 54. Rxh7 {[%clk 0:00:00]}  Rh2+ {[%clk 0:00:00]} 55. Kxd3 {[%clk 0:00:00]}  Rxb2 {[%clk 0:00:00]} 56. Rf7+ {[%clk 0:00:00]}  Kg4 {[%clk 0:00:00]} 57. h7 {[%clk 0:00:00]}  Rh2 {[%clk 0:00:00]} 58. Kc4 {[%clk 0:00:00]}  Kg5 {[%clk 0:00:00]} 59. Kb4 {[%clk 0:00:00]}  Rh4+ {[%clk 0:00:00]} 60. Kb5 {[%clk 0:00:00]}  Kg6 {[%clk 0:00:00]} 61. Rc7 {[%clk 0:00:00]}  Kf6 {[%clk 0:00:00]} 62. Rc4 {[%clk 0:00:00]}  Rxh7 {[%clk 0:00:00]} 63. Kxa4 {[%clk 0:00:00]}  Ke6 {[%clk 0:00:00]} 64. Rd4 {[%clk 0:00:00]}  Rh1 {[%clk 0:00:00]} 65. Ka5 {[%clk 0:00:00]}  Rb1 {[%clk 0:00:00]} 66. a4 {[%clk 0:00:00]}  Ke7 {[%clk 0:00:00]} 67. Ka6 {[%clk 0:00:00]}  Rb2 {[%clk 0:00:00]} 68. a5 {[%clk 0:00:00]}  Rb1 {[%clk 0:00:00]} 69. Ka7 {[%clk 0:00:00]}  Rb2 {[%clk 0:00:00]} 70. a6 {[%clk 0:00:00]}  Rb1 {[%clk 0:00:00]} 71. Ka8 {[%clk 0:00:00]}  Rb2 {[%clk 0:00:00]} 72. a7 {[%clk 0:00:00]}  Rb1 {[%clk 0:00:00]} 73. Rd2 {[%clk 0:00:00]}  Rb3 {[%clk 0:00:00]} 74. Rd5 {[%clk 0:00:00]}  Rb2 {[%clk 0:00:00]} 75. Rd1 {[%clk 0:00:00]}  Rb3 {[%clk 0:00:00]} 76. Rh1 {[%clk 0:00:00]}  Kd7 {[%clk 0:00:00]} 77. Rh8 {[%clk 0:00:00]}  Kc7 {[%clk 0:00:00]} 78. Rb8 {[%clk 0:00:00]}  Rh3 {[%clk 0:00:00]} 79. Rg8 {[%clk 0:00:00]}  Rb3 {[%clk 0:00:00]} 80. Rg7+ {[%clk 0:00:00]}  Kc8 {[%clk 0:00:00]} 81. Rg8+ {[%clk 0:00:00]}  Kc7 {[%clk 0:00:00]} 82. Rb8 {[%clk 0:00:00]}  Rh3 {[%clk 0:00:00]} 83. Rb7+ {[%clk 0:00:00]}  Kc8 {[%clk 0:00:00]} 84. Rb2 {[%clk 0:00:00]}  Rh7 {[%clk 0:00:00]} 85. Rc2+ {[%clk 0:00:00]}  Kd8 {[%clk 0:00:00]} 86. Kb8 {[%clk 0:00:00]} 1-0


[Site "https://www.chess.com"]

[Event "Titled Tuesday Blitz August 16 Early 2022"]
[White "Sultana, Sharmin Shirin"]
[Black "Garrido, Denis"]
[WhiteFideId "10204482"]
[BlackFideId "601217"]
[WhiteElo "1987"]
[BlackElo "2205"]
[Result "0-1"]
[Round "03"]
[TimeControl "180+2"]
[Date "2022.08.18"]
[WhiteClock "0:00:00"]
[BlackClock "0:00:00"]

1. d4 {[%clk 0:00:00]}  Nf6 {[%clk 0:00:00]} 2. c4 {[%clk 0:00:00]}  c5 {[%clk 0:00:00]} 3. d5 {[%clk 0:00:00]}  d6 {[%clk 0:00:00]} 4. Nc3 {[%clk 0:00:00]}  g6 {[%clk 0:00:00]} 5. e4 {[%clk 0:00:00]}  Bg7 {[%clk 0:00:00]} 6. Be2 {[%clk 0:00:00]}  O-O {[%clk 0:00:00]} 7. h4 {[%clk 0:00:00]}  e6 {[%clk 0:00:00]} 8. h5 {[%clk 0:00:00]}  exd5 {[%clk 0:00:00]} 9. exd5 {[%clk 0:00:00]}  Re8 {[%clk 0:00:00]} 10. Be3 {[%clk 0:00:00]}  b5 {[%clk 0:00:00]} 11. hxg6 {[%clk 0:00:00]}  hxg6 {[%clk 0:00:00]} 12. cxb5 {[%clk 0:00:00]}  a6 {[%clk 0:00:00]} 13. b6 {[%clk 0:00:00]}  Rxe3 {[%clk 0:00:00]} 14. fxe3 {[%clk 0:00:00]}  Qxb6 {[%clk 0:00:00]} 15. Qd2 {[%clk 0:00:00]}  Bf5 {[%clk 0:00:00]} 16. Nf3 {[%clk 0:00:00]}  Nbd7 {[%clk 0:00:00]} 17. Rc1 {[%clk 0:00:00]}  Re8 {[%clk 0:00:00]} 18. Nh4 {[%clk 0:00:00]}  Ne4 {[%clk 0:00:00]} 19. Nxe4 {[%clk 0:00:00]}  Bxe4 {[%clk 0:00:00]} 20. b3 {[%clk 0:00:00]}  Ne5 {[%clk 0:00:00]} 21. O-O {[%clk 0:00:00]}  Qd8 {[%clk 0:00:00]} 22. Nf3 {[%clk 0:00:00]}  Ng4 {[%clk 0:00:00]} 23. Bxa6 {[%clk 0:00:00]}  Bh6 {[%clk 0:00:00]} 24. Rce1 {[%clk 0:00:00]}  Qf6 {[%clk 0:00:00]} 25. Nh2 {[%clk 0:00:00]}  Qh4 {[%clk 0:00:00]} 26. Nxg4 {[%clk 0:00:00]}  Qxg4 {[%clk 0:00:00]} 27. Bb5 {[%clk 0:00:00]}  Re5 {[%clk 0:00:00]} 28. Re2 {[%clk 0:00:00]}  Rh5 {[%clk 0:00:00]} 29. Bd3 {[%clk 0:00:00]}  Bxd5 {[%clk 0:00:00]} 30. Bc4 {[%clk 0:00:00]}  Bxc4 {[%clk 0:00:00]} 31. bxc4 {[%clk 0:00:00]}  Qxc4 {[%clk 0:00:00]} 32. Ref2 {[%clk 0:00:00]}  Qe6 {[%clk 0:00:00]} 33. Rf3 {[%clk 0:00:00]}  Re5 {[%clk 0:00:00]} 34. Qa5 {[%clk 0:00:00]}  Bxe3+ {[%clk 0:00:00]} 35. Kh2 {[%clk 0:00:00]}  Rh5+ {[%clk 0:00:00]} 36. Rh3 {[%clk 0:00:00]}  Qe5+ {[%clk 0:00:00]} 37. g3 {[%clk 0:00:00]}  Rxh3+ {[%clk 0:00:00]} 38. Kxh3 {[%clk 0:00:00]}  Qh5+ {[%clk 0:00:00]} 0-1


[Site "https://www.chess.com"]

[Event "Titled Tuesday Blitz August 16 Early 2022"]
[White "Tanenbaum, Zachary"]
[Black "Rangel, Daniel"]
[WhiteFideId "2060850"]
[BlackFideId "2124475"]
[WhiteElo "2175"]
[BlackElo "2225"]
[Result "1-0"]
[Round "03"]
[TimeControl "180+2"]
[Date "2022.08.18"]
[WhiteClock "0:00:00"]
[BlackClock "0:00:00"]

1. e4 {[%clk 0:00:00]}  c5 {[%clk 0:00:00]} 2. Nf3 {[%clk 0:00:00]}  d6 {[%clk 0:00:00]} 3. d4 {[%clk 0:00:00]}  cxd4 {[%clk 0:00:00]} 4. Nxd4 {[%clk 0:00:00]}  Nf6 {[%clk 0:00:00]} 5. Nc3 {[%clk 0:00:00]}  g6 {[%clk 0:00:00]} 6. Be3 {[%clk 0:00:00]}  Bg7 {[%clk 0:00:00]} 7. f3 {[%clk 0:00:00]}  O-O {[%clk 0:00:00]} 8. Qd2 {[%clk 0:00:00]}  Nc6 {[%clk 0:00:00]} 9. g4 {[%clk 0:00:00]}  Nxd4 {[%clk 0:00:00]} 10. Bxd4 {[%clk 0:00:00]}  Be6 {[%clk 0:00:00]} 11. O-O-O {[%clk 0:00:00]}  Qa5 {[%clk 0:00:00]} 12. a3 {[%clk 0:00:00]}  Rfc8 {[%clk 0:00:00]} 13. h4 {[%clk 0:00:00]}  Rab8 {[%clk 0:00:00]} 14. Nd5 {[%clk 0:00:00]}  Qxd2+ {[%clk 0:00:00]} 15. Rxd2 {[%clk 0:00:00]}  Nxd5 {[%clk 0:00:00]} 16. exd5 {[%clk 0:00:00]}  Bxd5 {[%clk 0:00:00]} 17. Bxg7 {[%clk 0:00:00]}  Bxf3 {[%clk 0:00:00]} 18. Rh3 {[%clk 0:00:00]}  Bxg4 {[%clk 0:00:00]} 19. Rg3 {[%clk 0:00:00]}  Kxg7 {[%clk 0:00:00]} 20. Rxg4 {[%clk 0:00:00]}  Rc7 {[%clk 0:00:00]} 21. Bd3 {[%clk 0:00:00]}  e6 {[%clk 0:00:00]} 22. c4 {[%clk 0:00:00]}  b5 {[%clk 0:00:00]} 23. Rc2 {[%clk 0:00:00]}  bxc4 {[%clk 0:00:00]} 24. Rgxc4 {[%clk 0:00:00]}  Rxc4 {[%clk 0:00:00]} 25. Rxc4 {[%clk 0:00:00]}  Rb7 {[%clk 0:00:00]} 26. Rc6 {[%clk 0:00:00]}  d5 {[%clk 0:00:00]} 27. b4 {[%clk 0:00:00]}  h6 {[%clk 0:00:00]} 28. b5 {[%clk 0:00:00]}  g5 {[%clk 0:00:00]} 29. hxg5 {[%clk 0:00:00]}  hxg5 {[%clk 0:00:00]} 30. a4 {[%clk 0:00:00]}  g4 {[%clk 0:00:00]} 31. Kd2 {[%clk 0:00:00]}  Kf6 {[%clk 0:00:00]} 32. a5 {[%clk 0:00:00]}  Kg5 {[%clk 0:00:00]} 33. b6 {[%clk 0:00:00]}  axb6 {[%clk 0:00:00]} 34. axb6 {[%clk 0:00:00]}  g3 {[%clk 0:00:00]} 35. Ke3 {[%clk 0:00:00]}  Kh4 {[%clk 0:00:00]} 36. Ba6 {[%clk 0:00:00]}  Rb8 {[%clk 0:00:00]} 37. b7 {[%clk 0:00:00]}  Rg8 {[%clk 0:00:00]} 38. Rc8 {[%clk 0:00:00]}  Rg4 {[%clk 0:00:00]} 39. Rh8+ {[%clk 0:00:00]}  Kg5 {[%clk 0:00:00]} 40. Rg8+ {[%clk 0:00:00]}  Kf5 {[%clk 0:00:00]} 41. Rxg4 {[%clk 0:00:00]}  Kxg4 {[%clk 0:00:00]} 42. b8=Q {[%clk 0:00:00]}  g2 {[%clk 0:00:00]} 43. Qf4+ {[%clk 0:00:00]}  Kh3 {[%clk 0:00:00]} 44. Kf2 {[%clk 0:00:00]} 1-0


[Site "https://www.chess.com"]